fUST/lending_fUST_20251212
["ID","MTS","AMOUNT","RATE_DAILY","PERIOD"]
[398351784,1765550584850,-216.37,0.00040547,39]
[398351785,1765550584873,-169.876629,0.00041095,120]
[398351786,1765550584900,-1668.536328,0.00041095,120]
[398351787,1765550584924,-500.0,0.00041095,120]
[398351788,1765550584947,-208.72101962,0.00041095,120]
[398351789,1765550584971,-500.0,0.00041095,120]
[398351790,1765550584996,-213.26642798,0.00041095,120]
[398351791,1765550585023,-500.0,0.00041095,120]
[398351792,1765550585047,-226.29490366,0.00041095,120]
[398351793,1765550585071,-542.82,0.00041095,120]
[398351794,1765550585095,-182.40585884,0.00041095,120]
[398351795,1765550585119,-500.0,0.00041095,120]
[398351796,1765550585143,-257.96988719,0.00041095,120]
[398351797,1765550585168,-500.0,0.00041095,120]
[398351798,1765550585194,-1542.23,0.00041095,120]
[398351799,1765550585218,-500.0,0.00041095,120]
[398351800,1765550585242,-656.58,0.00041095,120]
[398351801,1765550585270,-500.0,0.00041095,120]
[398351802,1765550585297,-500.0,0.00041095,120]
[398351803,1765550585327,-1149.44,0.00041095,120]
[398351804,1765550585351,-467.45327972,0.00041095,120]
[398351805,1765550585374,-1912.47,0.00041095,120]
[398351806,1765550585398,-500.0,0.00041095,120]
[398351807,1765550585422,-500.0,0.00041095,20]
[398351808,1765550585445,-500.0,0.00041095,120]
[398351809,1765550585468,-541.33311091,0.00041095,120]
[398351810,1765550585492,-500.0,0.00041095,120]
[398351811,1765550585520,-500.0,0.00041095,120]
[398351812,1765550585544,-500.0,0.00041095,120]
[398351813,1765550585568,-500.0,0.00041095,120]
[398351814,1765550585593,-500.0,0.00041095,120]
[398351815,1765550585618,-500.0,0.00041095,120]
[398351816,1765550585643,-500.0,0.00041095,120]
[398351817,1765550585667,-500.0,0.00041095,120]
[398351818,1765550585694,-500.0,0.00041095,120]
[398351819,1765550585718,-341.31,0.00041095,120]
[398351820,1765550585741,-500.0,0.00041095,120]
[398351821,1765550585764,-500.0,0.00041095,120]
[398351822,1765550585790,-500.0,0.00041095,120]
[398351823,1765550585816,-861.35,0.00041095,120]
[398351824,1765550585841,-500.0,0.00041095,120]
[398351825,1765550585866,-500.0,0.00041095,120]
[398351826,1765550585890,-582.72,0.00041095,120]
[398351827,1765550585914,-500.0,0.00041095,120]
[398351828,1765550585938,-583.25,0.00041095,120]
[398351829,1765550585963,-500.0,0.00041095,120]
[398351830,1765550585987,-291.07615916,0.00041095,120]
[398351831,1765550586012,-500.0,0.00041095,120]
[398351832,1765550586040,-500.0,0.00041095,120]
[398351833,1765550586064,-500.0,0.00041095,120]
[398351834,1765550586089,-625.32,0.00041095,120]
[398351835,1765550586113,-500.0,0.00041095,120]
[398351836,1765550586138,-666.03,0.00041095,120]
[398351837,1765550586163,-500.0,0.00041095,120]
[398351838,1765550586188,-500.0,0.00041095,120]
[398351839,1765550586213,-500.0,0.00041095,120]
[398351840,1765550586238,-500.0,0.00041095,120]
[398351841,1765550586263,-500.0,0.00041095,120]
[398351842,1765550586292,-500.0,0.00041095,120]
[398351843,1765550586318,-247.29722,0.00041095,120]
[398351844,1765550586347,-514.07,0.00041095,120]
[398351845,1765550586373,-500.0,0.00041095,120]
[398351846,1765550586398,-500.0,0.00041095,120]
[398351847,1765550586423,-500.0,0.00041095,120]
[398351848,1765550586448,-500.0,0.00041095,120]
[398351849,1765550586472,-500.0,0.00041095,120]
[398351850,1765550586497,-557.56,0.00041095,120]
[398351851,1765550586525,-500.0,0.00041095,120]
[398351852,1765550586551,-500.0,0.00041095,120]
[398351853,1765550586576,-784.13,0.00041095,120]
[398351854,1765550586603,-500.0,0.00041095,120]
[398351855,1765550586629,-580.32,0.00041095,120]
[398351856,1765550586654,-639.03693667,0.00041095,120]
[398351857,1765550586679,-500.0,0.00041095,120]
[398351858,1765550586704,-500.0,0.00041095,120]
[398351859,1765550586728,-500.0,0.00041095,120]
[398351860,1765550586752,-500.0,0.00041095,120]
[398351861,1765550586777,-500.0,0.00041095,120]
[398351862,1765550586801,-500.0,0.00041095,120]
[398351863,1765550586825,-500.0,0.00041095,120]
[398351864,1765550586850,-500.0,0.00041095,120]
[398351865,1765550586875,-887.99,0.00041095,120]
[398351866,1765550586901,-500.0,0.00041095,120]
[398351867,1765550586926,-633.52,0.00041095,120]
[398351868,1765550586951,-500.0,0.00041095,120]
[398351869,1765550586977,-500.0,0.00041095,120]
[398351870,1765550587149,-500.0,0.00041095,120]
[398351871,1765550587176,-500.0,0.00041095,120]
[398351872,1765550587214,-500.0,0.00041095,120]
[398351873,1765550587240,-500.0,0.00041095,120]
[398351874,1765550587266,-500.0,0.00041095,120]
[398351875,1765550587295,-500.0,0.00041095,120]
[398351876,1765550587322,-1098.42,0.00041095,120]
[398351877,1765550587347,-500.0,0.00041095,120]
[398351878,1765550587373,-500.0,0.00041095,120]
[398351879,1765550587399,-1335.95,0.00041095,120]
[398351880,1765550587425,-500.0,0.00041095,120]
[398351881,1765550587451,-500.0,0.00041095,120]
[398351882,1765550587477,-500.0,0.00041095,120]
[398351883,1765550587502,-950.34,0.00041095,120]
[398351884,1765550587527,-500.0,0.00041095,120]
[398351885,1765550587553,-500.0,0.00041095,120]
[398351886,1765550587579,-500.0,0.00041095,30]
[398351887,1765550587605,-500.0,0.00041095,120]
[398351888,1765550587630,-1237.89,0.00041095,120]
[398351889,1765550587655,-500.0,0.00041095,120]
[398351890,1765550587680,-500.0,0.00041095,120]
[398351891,1765550587705,-500.0,0.00041095,120]
[398351892,1765550587729,-500.0,0.00041095,120]
[398351893,1765550587754,-500.0,0.00041095,120]
[398351894,1765550587778,-500.0,0.00041095,120]
[398351895,1765550587802,-1050.96,0.00041095,120]
[398351896,1765550587826,-500.0,0.00041095,120]
[398351897,1765550587851,-599.7,0.00041095,120]
[398351898,1765550587875,-756.15,0.00041095,120]
[398351899,1765550587900,-627.07,0.00041095,120]
[398351900,1765550587924,-500.0,0.00041095,120]
[398351901,1765550587948,-500.0,0.00041095,120]
[398351902,1765550587973,-630.5,0.00041095,120]
[398351903,1765550587999,-846.67,0.00041095,120]
[398351904,1765550588024,-500.0,0.00041095,120]
[398351905,1765550588051,-500.0,0.00041095,120]
[398351906,1765550588078,-500.0,0.00041095,120]
[398351907,1765550588105,-592.88,0.00041095,120]
[398351908,1765550588130,-500.0,0.00041095,120]
[398351909,1765550588157,-500.0,0.00041095,120]
[398351910,1765550588183,-1313.08,0.00041095,120]
[398351911,1765550588208,-500.0,0.00041095,120]
[398351912,1765550588234,-500.0,0.00041095,120]
[398351913,1765550588260,-500.0,0.00041095,120]
[398351914,1765550588287,-523.02488435,0.00041095,120]
[398351915,1765550588313,-500.0,0.00041095,120]
[398351916,1765550588339,-2756.78,0.00041095,120]
[398351917,1765550588364,-500.0,0.00041095,120]
[398351918,1765550588390,-575.09233454,0.00041095,120]
[398351919,1765550588416,-784.6,0.00041095,120]
[398351920,1765550588441,-500.0,0.00041095,120]
[398351921,1765550588466,-2350.79,0.00041095,120]
[398351922,1765550588493,-500.0,0.00041095,120]
[398351923,1765550588524,-500.0,0.00041095,120]
[398351924,1765550588563,-500.0,0.00041095,120]
[398351925,1765550588601,-427.57113662,0.00041095,120]
[398351926,1765550588638,-500.0,0.00041095,120]
[398351927,1765550588679,-500.0,0.00041095,120]
[398351928,1765550588721,-475.7687297,0.00041095,120]
[398351929,1765550588764,-678.0,0.00041095,120]
[398351930,1765550588809,-500.0,0.00041095,120]
[398351931,1765550588853,-500.0,0.00041095,120]
[398351932,1765550588901,-500.0,0.00041095,120]
[398351933,1765550588942,-551.87,0.00041095,120]
[398351934,1765550588983,-500.0,0.00041095,120]
[398351935,1765550589024,-2805.16,0.00041095,120]
[398351936,1765550589065,-770.49,0.00041095,120]
[398351937,1765550589105,-500.0,0.00041095,120]
[398351938,1765550589145,-1853.03,0.00041095,120]
[398351939,1765550589184,-500.0,0.00041095,120]
[398351940,1765550589221,-1526.12,0.00041095,120]
[398351941,1765550589260,-500.0,0.00041095,120]
[398351942,1765550589299,-500.0,0.00041095,120]
[398351943,1765550589336,-500.0,0.00041095,120]
[398351944,1765550589374,-500.0,0.00041095,120]
[398351945,1765550589411,-500.0,0.00041095,120]
[398351946,1765550589449,-656.45,0.00041095,120]
[398351947,1765550589487,-500.0,0.00041095,120]
[398351948,1765550589524,-500.0,0.00041095,120]
[398351949,1765550589561,-976.43,0.00041095,120]
[398351950,1765550589597,-500.0,0.00041095,120]
[398351951,1765550589635,-500.0,0.00041095,120]
[398351952,1765550589937,-500.0,0.00041095,120]
[398351953,1765550589979,-505.34175831,0.00041095,120]
[398351954,1765550590016,-1044.0,0.00041095,120]
[398351955,1765550590052,-789.39,0.00041095,120]
[398351956,1765550590086,-500.0,0.00041095,120]
[398351957,1765550590119,-500.0,0.00041095,120]
[398351958,1765550590152,-500.0,0.00041095,120]
[398351959,1765550590185,-500.0,0.00041095,120]
[398351960,1765550590218,-1109.49,0.00041095,120]
[398351961,1765550590251,-1167.12,0.00041095,120]
[398351962,1765550590284,-500.0,0.00041095,120]
[398351963,1765550590319,-631.56,0.00041095,120]
[398351964,1765550590353,-500.0,0.00041095,120]
[398351965,1765550590386,-500.0,0.00041095,120]
[398351966,1765550590421,-1530.04,0.00041095,30]
[398351967,1765550590456,-500.0,0.00041095,120]
[398351968,1765550590490,-500.0,0.00041095,120]
[398351969,1765550590531,-500.0,0.00041095,120]
[398351970,1765550590569,-500.0,0.00041095,120]
[398351971,1765550590606,-500.0,0.00041095,120]
[398351972,1765550590641,-500.0,0.00041095,120]
[398351973,1765550590679,-500.0,0.00041095,120]
[398351974,1765550590712,-500.0,0.00041095,120]
[398351975,1765550590747,-500.0,0.00041095,120]
[398351976,1765550590782,-510.37,0.00041095,120]
[398351977,1765550590818,-500.0,0.00041095,120]
[398351978,1765550590852,-2114.75886115,0.00041095,60]
[398351979,1765550590888,-530.49,0.00041095,120]
[398351980,1765550590925,-500.0,0.00041095,120]
[398351981,1765550590963,-500.0,0.00041095,120]
[398351982,1765550590999,-500.0,0.00041095,120]
[398351983,1765550591034,-593.35,0.00041095,120]
[398351984,1765550591076,-211.53424902,0.00041095,120]
[398351985,1765550591117,-500.0,0.00041095,120]
[398351986,1765550591156,-1767.15,0.00041095,120]
[398351987,1765550591194,-1131.39,0.00041095,120]
[398351988,1765550591231,-500.0,0.00041095,120]
[398351989,1765550591266,-1136.91,0.00041095,120]
[398351990,1765550591304,-1199.96,0.00041095,120]
[398351991,1765550591349,-500.0,0.00041095,120]
[398351992,1765550591394,-863.6,0.00041095,120]
[398351993,1765550591432,-500.0,0.00041095,120]
[398351994,1765550591477,-500.0,0.00041095,120]
[398351995,1765550591515,-500.0,0.00041095,120]
[398351996,1765550591554,-1062.86,0.00041095,120]
[398351997,1765550591596,-760.7,0.00041095,120]
[398351998,1765550591633,-500.0,0.00041095,120]
[398351999,1765550591671,-179.30610478,0.00041095,120]
[398352000,1765550591708,-622.22,0.00041095,120]
[398352001,1765550591745,-633.34,0.00041095,120]
[398352002,1765550591783,-785.6,0.00041095,120]
[398352003,1765550591824,-500.0,0.00041095,120]
[398352004,1765550591866,-1007.11,0.00041095,120]
[398352005,1765550591910,-500.0,0.00041095,120]
[398352006,1765550591950,-643.45,0.00041095,120]
[398352007,1765550591990,-605.35,0.00041095,120]
[398352008,1765550592028,-500.0,0.00041095,120]
[398352009,1765550592064,-1267.0,0.00041095,120]
[398352010,1765550592103,-500.0,0.00041095,120]
[398352011,1765550592140,-500.0,0.00041095,120]
[398352012,1765550592177,-1317.67,0.00041095,120]
[398352013,1765550592213,-500.0,0.00041095,120]
[398352014,1765550592249,-500.0,0.00041095,120]
[398352015,1765550592284,-2532.65,0.00041095,120]
[398352016,1765550592320,-500.0,0.00041095,120]
[398352017,1765550592359,-500.0,0.00041095,120]
[398352018,1765550592407,-500.0,0.00041095,120]
[398352019,1765550592451,-500.0,0.00041095,120]
[398352020,1765550592489,-500.0,0.00041095,120]
[398352021,1765550592529,-500.0,0.00041095,120]
[398352022,1765550592567,-649.21,0.00041095,120]
[398352023,1765550592604,-522.89,0.00041095,120]
[398352024,1765550592642,-500.0,0.00041095,120]
[398352025,1765550592678,-535.99,0.00041095,60]
[398352026,1765550592715,-1816.61,0.00041095,120]
[398352027,1765550592753,-500.0,0.00041095,120]
[398352028,1765550592789,-500.0,0.00041095,120]
[398352029,1765550592825,-2896.16,0.00041095,120]
[398352030,1765550592862,-1053.13,0.00041095,120]
[398352031,1765550592899,-500.0,0.00041095,120]
[398352032,1765550592936,-500.0,0.00041095,120]
[398352033,1765550592973,-901.04,0.00041095,120]
[398352034,1765550593010,-500.0,0.00041095,120]
[398352035,1765550593051,-500.0,0.00041095,120]
[398352036,1765550593090,-2528.58,0.00041095,30]
[398352037,1765550593127,-500.0,0.00041095,120]
[398352038,1765550593166,-500.0,0.00041095,120]
[398352039,1765550593212,-500.0,0.00041095,120]
[398352040,1765550593250,-500.0,0.00041095,120]
[398352041,1765550593287,-500.0,0.00041095,120]
[398352042,1765550593324,-500.0,0.00041095,120]
[398352043,1765550593362,-2217.63,0.00041095,120]
[398352044,1765550593400,-500.0,0.00041095,120]
[398352045,1765550593444,-500.0,0.00041095,120]
[398352046,1765550593482,-236.42103334,0.00041095,120]
[398352047,1765550593519,-1430.93,0.00041095,120]
[398352048,1765550593556,-500.0,0.00041095,120]
[398352049,1765550593593,-500.0,0.00041095,120]
[398352050,1765550593629,-500.0,0.00041095,120]
[398352051,1765550593665,-500.0,0.00041095,120]
[398352052,1765550593700,-500.0,0.00041095,120]
[398352053,1765550593735,-1274.91,0.00041095,120]
[398352054,1765550593771,-500.0,0.00041095,120]
[398352055,1765550593808,-500.0,0.00041095,120]
[398352056,1765550593846,-1530.36,0.00041095,120]
[398352057,1765550593880,-2304.51,0.00041095,120]
[398352058,1765550593916,-500.0,0.00041095,120]
[398352059,1765550593959,-1066.0,0.00041095,120]
[398352060,1765550593995,-2307.18,0.00041095,120]
[398352061,1765550594032,-500.0,0.00041095,120]
[398352062,1765550594069,-500.0,0.00041095,120]
[398352063,1765550594108,-780.18,0.00041095,120]
[398352064,1765550594149,-500.0,0.00041095,120]
[398352065,1765550594196,-587.09,0.00041095,120]
[398352066,1765550594240,-912.38,0.00041095,120]
[398352067,1765550594284,-500.0,0.00041095,120]
[398352068,1765550594326,-500.0,0.00041095,120]
[398352069,1765550594372,-500.0,0.00041095,120]
[398352070,1765550594428,-500.0,0.00041095,120]
[398352071,1765550594485,-500.0,0.00041095,120]
[398352072,1765550594535,-500.0,0.00041095,120]
[398352073,1765550594581,-757.56,0.00041095,120]
[398352074,1765550594627,-1239.73,0.00041095,120]
[398352075,1765550594671,-500.0,0.00041095,120]
[398352076,1765550594720,-500.0,0.00041095,120]
[398352077,1765550594769,-655.77,0.00041095,120]
[398352078,1765550594818,-500.0,0.00041095,120]
[398352079,1765550594871,-500.0,0.00041095,120]
[398352080,1765550594929,-500.0,0.00041095,120]
[398352081,1765550594982,-775.49,0.00041095,120]
[398352082,1765550595032,-550.93,0.00041095,120]
[398352083,1765550595076,-1207.54,0.00041095,120]
[398352084,1765550595120,-343.08646654,0.00041095,120]
[398352085,1765550595165,-500.0,0.00041095,120]
[398352086,1765550595206,-600.79,0.00041095,120]
[398352087,1765550595250,-500.0,0.00041095,120]
[398352088,1765550595292,-500.0,0.00041095,90]
[398352089,1765550595331,-4967.13,0.00041095,120]
[398352090,1765550595372,-673.72,0.00041095,120]
[398352091,1765550595416,-500.0,0.00041095,120]
[398352092,1765550595460,-500.0,0.00041095,120]
[398352093,1765550595503,-500.0,0.00041095,120]
[398352094,1765550595545,-500.0,0.00041095,120]
[398352095,1765550595586,-508.26,0.00041095,120]
[398352096,1765550595633,-740.52,0.00041095,120]
[398352097,1765550595672,-2196.53,0.00041095,120]
[398352098,1765550595712,-836.83,0.00041095,120]
[398352099,1765550595752,-500.0,0.00041095,120]
[398352100,1765550595792,-628.01,0.00041095,120]
[398352101,1765550595832,-500.0,0.00041095,120]
[398352102,1765550595876,-519.93,0.00041095,120]
[398352103,1765550595915,-978.47,0.00041095,120]
[398352104,1765550595955,-500.0,0.00041095,120]
[398352105,1765550595994,-500.0,0.00041095,120]
[398352106,1765550596036,-965.14,0.00041095,120]
[398352107,1765550596078,-500.0,0.00041095,120]
[398352108,1765550596120,-500.0,0.00041095,120]
[398352109,1765550596162,-500.0,0.00041095,120]
[398352110,1765550596209,-500.0,0.00041095,120]
[398352111,1765550596252,-1184.12,0.00041095,120]
[398352112,1765550596295,-500.0,0.00041095,120]
[398352113,1765550596339,-500.0,0.00041095,120]
[398352114,1765550596382,-902.21,0.00041095,120]
[398352115,1765550596423,-582.55162692,0.00041095,120]
[398352116,1765550597058,-572.16,0.00041095,120]
[398352117,1765550597095,-500.0,0.00041095,120]
[398352118,1765550597130,-500.0,0.00041095,120]
[398352119,1765550597166,-330.83188577,0.00041095,120]
[398352120,1765550597201,-1561.62,0.00041095,120]
[398352121,1765550597236,-500.0,0.00041095,120]
[398352122,1765550597270,-1553.54,0.00041095,120]
[398352123,1765550597308,-28106.34,0.00041095,120]
[398352124,1765550597346,-500.0,0.00041095,120]
[398352125,1765550597382,-749.87,0.00041095,120]
[398352126,1765550597419,-500.0,0.00041095,120]
[398352127,1765550597454,-500.0,0.00041095,120]
[398352128,1765550597491,-500.0,0.00041095,120]
[398352129,1765550597529,-1859.36,0.00041095,120]
[398352130,1765550597564,-500.0,0.00041095,120]
[398352131,1765550597599,-500.0,0.00041095,120]
[398352132,1765550597632,-500.0,0.00041095,120]
[398352133,1765550597665,-1893.46,0.00041095,120]
[398352134,1765550597700,-830.87,0.00041095,120]
[398352135,1765550597735,-500.0,0.00041095,120]
[398352136,1765550597768,-534.91,0.00041095,120]
[398352137,1765550597805,-2243.46,0.00041095,120]
[398352138,1765550597839,-500.0,0.00041095,120]
[398352139,1765550597873,-6367.5,0.00041095,120]
[398352140,1765550597905,-500.0,0.00041095,120]
[398352141,1765550597938,-514.59,0.00041095,60]
[398352142,1765550597972,-500.0,0.00041095,120]
[398352143,1765550598005,-500.0,0.00041095,120]
[398352144,1765550598040,-3453.8,0.00041095,120]
[398352145,1765550598074,-500.0,0.00041095,120]
[398352146,1765550598107,-500.0,0.00041095,120]
[398352147,1765550598141,-835.05,0.00041095,120]
[398352148,1765550598177,-2657.46,0.00041095,120]
[398352149,1765550598211,-1899.05,0.00041095,120]
[398352150,1765550598245,-500.0,0.00041095,120]
[398352151,1765550598278,-2922.69,0.00041095,120]
[398352152,1765550598312,-1195.32,0.00041095,120]
[398352153,1765550598348,-500.0,0.00041095,120]
[398352154,1765550598382,-573.61029081,0.00041095,120]
[398352155,1765550598416,-1029.2,0.00041095,120]
[398352156,1765550598450,-500.0,0.00041095,120]
[398352157,1765550598484,-212.40901272,0.00041095,120]
[398352158,1765550598522,-500.0,0.00041095,120]
[398352159,1765550598560,-500.0,0.00041095,120]
[398352160,1765550598593,-500.0,0.00041095,120]
[398352161,1765550598628,-3323.03,0.00041095,120]
[398352162,1765550598662,-500.0,0.00041095,120]
[398352163,1765550598696,-856.23,0.00041095,120]
[398352164,1765550598730,-500.0,0.00041095,120]
[398352165,1765550598765,-500.0,0.00041095,120]
[398352166,1765550598803,-500.0,0.00041095,120]
[398352167,1765550598839,-500.0,0.00041095,120]
[398352168,1765550598876,-4775.19,0.00041095,120]
[398352169,1765550598915,-500.0,0.00041095,120]
[398352170,1765550598951,-2051.1,0.00041095,120]
[398352171,1765550598987,-500.0,0.00041095,120]
[398352172,1765550599026,-643.49988971,0.00041095,120]
[398352173,1765550599065,-3114.34,0.00041095,120]
[398352174,1765550599102,-1277.89,0.00041095,120]
[398352175,1765550599138,-8536.48,0.00041095,120]
[398352176,1765550599174,-3566.64,0.00041095,120]
[398352177,1765550599211,-602.99,0.00041095,120]
[398352178,1765550599247,-700.66,0.00041095,120]
[398352179,1765550599283,-500.0,0.00041095,120]
[398352180,1765550599319,-500.0,0.00041095,120]
[398352181,1765550599354,-1213.05,0.00041095,120]
[398352182,1765550599389,-500.0,0.00041095,120]
[398352183,1765550599425,-500.0,0.00041095,120]
[398352184,1765550599460,-1525.15,0.00041095,120]
[398352185,1765550599497,-500.0,0.00041095,120]
[398352186,1765550599533,-500.0,0.00041095,120]
[398352187,1765550599568,-500.0,0.00041095,120]
[398352188,1765550599602,-500.0,0.00041095,120]
[398352189,1765550599637,-500.0,0.00041095,120]
[398352190,1765550599677,-623.0,0.00041095,120]
[398352191,1765550599718,-297.47271515,0.00041095,120]
[398352192,1765550599755,-500.0,0.00041095,120]
[398352193,1765550599790,-500.0,0.00041095,120]
[398352194,1765550599824,-862.66,0.00041095,120]
[398352195,1765550599858,-34926.57,0.00041095,120]
[398352196,1765550599893,-537.63,0.00041095,120]
[398352197,1765550599928,-500.0,0.00041095,120]
[398352198,1765550599966,-2694.37,0.00041095,120]
[398352199,1765550600002,-500.0,0.00041095,120]
[398352200,1765550600038,-2328.13,0.00041095,120]
[398352201,1765550600074,-500.0,0.00041095,120]
[398352202,1765550600109,-500.0,0.00041095,120]
[398352203,1765550600146,-1190.56,0.00041095,120]
[398352204,1765550600182,-500.0,0.00041095,120]
[398352205,1765550600217,-599.49909167,0.00041095,120]
[398352206,1765550600255,-1766.21,0.00041095,120]
[398352207,1765550600291,-500.0,0.00041095,120]
[398352208,1765550600489,-566.66,0.00041095,120]
[398352209,1765550600530,-500.0,0.00041095,120]
[398352210,1765550600568,-500.0,0.00041095,120]
[398352211,1765550600605,-1386.22,0.00041095,120]
[398352212,1765550600640,-717.34,0.00041095,120]
[398352213,1765550600675,-888.61,0.00041095,120]
[398352214,1765550600710,-1317.41,0.00041095,120]
[398352215,1765550600745,-1687.34,0.00041095,120]
[398352216,1765550600781,-500.0,0.00041095,120]
[398352217,1765550600816,-500.0,0.00041095,120]
[398352218,1765550600851,-1002.76,0.00041095,120]
[398352219,1765550600885,-849.49,0.00041095,120]
[398352220,1765550600920,-500.0,0.00041095,120]
[398352221,1765550600956,-5438.09,0.00041095,120]
[398352222,1765550600991,-643.6,0.00041095,120]
[398352223,1765550601027,-792.76,0.00041095,120]
[398352224,1765550601062,-500.0,0.00041095,120]
[398352225,1765550601098,-5550.06,0.00041095,120]
[398352226,1765550601134,-502.21281312,0.00041095,120]
[398352227,1765550601169,-876.53,0.00041095,120]
[398352228,1765550601207,-3422.1,0.00041095,120]
[398352229,1765550601244,-742.28,0.00041095,120]
[398352230,1765550601280,-1603.27,0.00041095,120]
[398352231,1765550601318,-500.0,0.00041095,120]
[398352232,1765550601355,-528.71,0.00041095,120]
[398352233,1765550601395,-500.0,0.00041095,120]
[398352234,1765550601435,-8598.22,0.00041095,120]
[398352235,1765550601474,-1629.58,0.00041095,120]
[398352236,1765550601514,-893.45,0.00041095,120]
[398352237,1765550601555,-500.0,0.00041095,120]
[398352238,1765550601592,-863.82,0.00041095,120]
[398352239,1765550601629,-2007.36,0.00041095,120]
[398352240,1765550601665,-500.0,0.00041095,120]
[398352241,1765550601701,-577.55,0.00041095,120]
[398352242,1765550601736,-500.0,0.00041095,60]
[398352243,1765550601770,-500.0,0.00041095,120]
[398352244,1765550601805,-342.67394435,0.00041095,120]
[398352245,1765550601839,-6596.14,0.00041095,120]
[398352246,1765550601872,-500.0,0.00041095,120]
[398352247,1765550601907,-612.89,0.00041095,120]
[398352248,1765550601941,-529.71,0.00041095,120]
[398352249,1765550601976,-500.0,0.00041095,120]
[398352250,1765550602012,-1189.73,0.00041095,120]
[398352251,1765550602046,-1321.92,0.00041095,21]
[398352252,1765550602080,-555.33,0.00041095,120]
[398352253,1765550602113,-500.0,0.00041095,120]
[398352254,1765550602148,-500.0,0.00041095,120]
[398352255,1765550602183,-762.11,0.00041095,120]
[398352256,1765550602219,-2165.66,0.00041095,120]
[398352257,1765550602252,-500.0,0.00041095,120]
[398352258,1765550602287,-500.0,0.00041095,120]
[398352259,1765550602322,-500.0,0.00041095,120]
[398352260,1765550602356,-926.08,0.00041095,120]
[398352261,1765550602391,-927.01,0.00041095,120]
[398352262,1765550602425,-1481.02,0.00041095,120]
[398352263,1765550602461,-9311.53,0.00041095,120]
[398352264,1765550602495,-500.0,0.00041095,120]
[398352265,1765550602529,-197.93702969,0.00041095,120]
[398352266,1765550602567,-638.95,0.00041095,120]
[398352267,1765550602604,-500.0,0.00041095,120]
[398352268,1765550602637,-500.0,0.00041095,120]
[398352269,1765550602674,-500.0,0.00041095,120]
[398352270,1765550602707,-666.47,0.00041095,120]
[398352271,1765550602739,-500.0,0.00041095,120]
[398352272,1765550602772,-544.01,0.00041095,120]
[398352273,1765550602806,-713.64,0.00041095,120]
[398352274,1765550602840,-620.83,0.00041095,120]
[398352275,1765550602874,-9421.58,0.00041095,120]
[398352276,1765550602907,-500.0,0.00041095,120]
[398352277,1765550602940,-730.68,0.00041095,120]
[398352278,1765550602977,-500.0,0.00041095,120]
[398352279,1765550603014,-580.18,0.00041095,120]
[398352280,1765550603052,-3515.94,0.00041095,120]
[398352281,1765550603090,-1297.0,0.00041095,30]
[398352282,1765550603128,-633.66,0.00041095,120]
[398352283,1765550603167,-922.4,0.00041095,30]